bitfinex/quotes_SOLUSD_20250625
["timestamp","ask_amount","ask_price","bid_price","bid_amount"]
[1750816088869,5.51142811,146.0,145.99,6.3334]
[1750816089185,5.51142811,146.0,145.98,6.3334]
[1750816089383,5.51142811,145.99,145.98,6.3334]
[1750816090291,6.19640653,145.99,145.98,6.3334]
[1750816093490,6.19640653,145.99,145.97,6.3334]
[1750816093793,5.51142811,145.98,145.97,6.3334]
[1750816095071,6.19645345,145.98,145.97,6.3334]
[1750816098093,6.19645345,145.98,145.96,6.3334]
[1750816098274,5.51142811,145.97,145.96,6.3334]
[1750816099777,6.19650038,145.97,145.96,6.3334]
[1750816101174,6.19650038,145.97,145.95,6.3334]
[1750816101385,5.51142811,145.96,145.95,6.3334]
[1750816101892,6.19654732,145.96,145.94,6.3334]
[1750816102197,0.68511921,145.96,145.95,6.3334]
[1750816102377,6.19654732,145.96,145.95,6.3334]
[1750816102574,0.68511921,145.96,145.95,6.3334]
[1750816102775,6.19654732,145.96,145.95,6.3334]
[1750816104493,26.0,145.97,145.96,6.3334]
[1750816104696,5.51142811,145.98,145.97,6.3334]
[1750816105006,26.6849315,146.0,145.99,6.3334]
[1750816105182,32.19635961,146.0,145.99,6.3334]
[1750816108307,32.19635961,146.0,145.98,6.3334]
[1750816108507,0.6849315,146.0,145.99,6.3334]
[1750816108680,0.6849315,146.0,145.98,6.3334]
[1750816109384,1.71210254,146.02,145.98,6.3334]
[1750816109583,5.51142811,145.99,145.97,6.3334]
[1750816109798,5.51142811,145.98,145.97,6.3334]
[1750816110704,5.51142811,145.98,145.94,6.3334]
[1750816110884,5.51142811,145.95,145.94,6.3334]
[1750816111902,5.51142811,145.96,145.94,6.3334]
[1750816112203,5.51142811,145.96,145.95,6.3334]
[1750816113392,6.19654732,145.96,145.95,6.3334]
[1750816114306,5.51142811,145.96,145.95,6.3334]
[1750816114510,26.68508064,145.97,145.95,6.3334]
[1750816114710,5.51142811,145.96,145.95,6.3334]
[1750816115409,6.19654732,145.96,145.95,6.3334]
[1750816120396,0.68509432,145.97,145.96,6.3334]
[1750816120590,6.19652243,145.97,145.96,6.3334]
[1750816132734,11.26971604,145.97,145.95,6.3334]
[1750816132905,5.51142811,145.96,145.95,6.3334]
[1750816133726,6.19654732,145.96,145.95,6.3334]
[1750816134225,6.19654732,145.96,145.94,6.3334]
[1750816134423,5.51142811,145.95,145.94,6.3334]
[1750816135031,5.51142811,145.95,145.93,6.3334]
[1750816135212,5.51142811,145.94,145.93,6.3334]
[1750816135811,6.19664121,145.94,145.93,6.3334]
[1750816136024,6.19664121,145.94,145.92,6.3334]
[1750816136225,5.51142811,145.93,145.92,6.3334]
[1750816136818,5.51142811,145.93,145.9,6.3334]
[1750816137147,7.47143946,145.94,145.91,6.3334]
[1750816137627,26.0,145.93,145.91,6.3334]
[1750816137809,26.68530701,145.92,145.91,6.3334]
[1750816138310,32.19673512,145.92,145.91,6.3334]
[1750816138534,31.51142811,145.92,145.91,6.3334]
[1750816139629,32.19673512,145.92,145.91,6.3334]
[1750816139926,26.0,145.92,145.91,6.3334]
[1750816140107,32.19673512,145.92,145.91,6.3334]
[1750816144235,32.19673512,145.92,145.9,6.3334]
[1750816144432,5.51142811,145.91,145.9,6.3334]
[1750816145445,6.19678209,145.91,145.9,6.3334]
[1750816145731,6.19678209,145.91,145.89,6.3334]
[1750816145930,5.51142811,145.9,145.89,6.3334]
[1750816147345,6.19682906,145.9,145.89,6.3334]
[1750816150837,6.19682906,145.9,145.85,7.7398]
[1750816150838,6.19682906,145.9,145.88,6.3334]
[1750816151040,5.51142811,145.89,145.88,6.3334]
[1750816151938,6.19682906,145.9,145.88,6.3334]
[1750816152123,6.19682906,145.9,145.89,6.3334]
[1750816154243,4.22931756,145.9,145.89,6.3334]
[1750816156344,30.22931756,145.9,145.89,6.3334]
[1750816157166,26.68540095,145.9,145.89,6.3334]
[1750816157343,30.22931756,145.9,145.89,6.3334]
[1750816159349,26.68540095,145.9,145.89,6.3334]
[1750816159518,30.22931756,145.9,145.89,6.3334]
[1750816159723,29.54391661,145.9,145.89,6.3334]
[1750816160252,26.0,145.9,145.89,6.3334]
[1750816160449,29.54391661,145.9,145.89,6.3334]
[1750816160642,30.22931756,145.9,145.89,6.3334]
[1750816163451,29.54391661,145.9,145.89,6.3334]
[1750816163828,3.54391661,145.9,145.89,6.3334]
[1750816164933,4.22931756,145.9,145.89,6.3334]
[1750816165240,3.54391661,145.9,145.89,6.3334]
[1750816166651,4.22931756,145.9,145.89,6.3334]
[1750816167448,26.68540095,145.9,145.89,6.3334]
[1750816167654,30.22931756,145.9,145.89,6.3334]
[1750816170562,26.0,145.89,145.87,6.3334]
[1750816170861,3.54391661,145.88,145.86,6.3334]
[1750816171064,3.54391661,145.87,145.86,6.3334]
[1750816171254,26.0,145.89,145.85,6.3334]
[1750816171451,3.54391661,145.86,145.85,6.3334]
[1750816171653,4.22950553,145.86,145.85,6.3334]
[1750816172746,4.22950553,145.86,145.83,6.3334]
[1750816172947,3.54391661,145.84,145.83,6.3334]
[1750816173863,4.22959955,145.84,145.83,6.3334]
[1750816174169,0.68568294,145.84,145.83,6.3334]
[1750816174466,3.54391661,145.85,145.83,6.3334]
[1750816174672,3.54391661,145.85,145.84,6.3334]
[1750816175873,26.0,145.85,145.84,6.3334]
[1750816176473,3.54391661,145.87,145.86,6.3334]
[1750816177573,30.22945853,145.87,145.86,6.3334]
[1750816177776,26.0,145.87,145.86,6.3334]
[1750816178981,32.22435603,145.9,145.89,6.3334]
[1750816179273,6.22435603,145.9,145.89,6.3334]
[1750816179444,32.22435603,145.9,145.89,6.3334]
[1750816180267,26.68541974,145.9,145.89,6.3334]
[1750816180456,26.68541974,145.9,145.85,6.85605897]
[1750816180457,5.53893629,145.92,145.91,6.3334]
[1750816180878,31.53893629,145.92,145.91,6.3334]
[1750816181779,32.224257,145.92,145.91,6.3334]
[1750816183677,37.32369005,145.92,145.91,6.3334]
[1750816183976,32.224257,145.92,145.91,6.3334]
[1750816184161,37.32369005,145.92,145.91,6.3334]
[1750816184363,32.224257,145.92,145.91,6.3334]
[1750816184574,37.32369005,145.92,145.91,6.3334]
[1750816184779,32.224257,145.92,145.91,6.3334]
[1750816185079,37.32369005,145.92,145.91,6.3334]
[1750816185253,32.224257,145.92,145.91,6.3334]
[1750816185576,37.32369005,145.92,145.91,6.3334]
[1750816185751,32.224257,145.92,145.91,6.3334]
[1750816185952,37.32369005,145.92,145.91,6.3334]
[1750816186167,32.224257,145.92,145.91,6.3334]
[1750816186476,37.32369005,145.92,145.91,6.3334]
[1750816186674,32.224257,145.92,145.91,6.3334]
[1750816186878,37.32369005,145.92,145.91,6.3334]
[1750816187214,32.224257,145.92,145.91,6.3334]
[1750816188177,31.53893629,145.92,145.91,6.3334]
[1750816188478,10.63836934,145.94,145.93,6.3334]
[1750816188667,5.53893629,145.94,145.93,6.3334]
[1750816189257,11.32355091,145.95,145.93,6.3334]
[1750816189467,6.22411786,145.95,145.93,6.3334]
[1750816189663,6.22411786,145.95,145.94,6.3334]
[1750816192561,0.68518157,145.95,145.94,6.3334]
[1750816193577,26.0,145.96,145.95,6.3334]
[1750816193885,5.09943305,145.99,145.98,6.3334]
[1750816194080,5.09943305,146.0,145.99,6.3334]
[1750816194290,5.09943305,146.01,146.0,6.3334]
[1750816194586,10.63836934,146.02,146.01,6.3334]
[1750816194790,5.53893629,146.02,146.01,6.3334]
[1750816194958,31.53893629,146.02,146.01,6.3334]
[1750816195158,11.32322534,146.02,146.01,6.3334]
[1750816195358,6.22379229,146.02,146.01,6.3334]
[1750816195783,26.0,146.0,145.99,6.3334]
[1750816195990,31.53893629,146.0,145.98,6.3334]
[1750816196163,5.53893629,145.99,145.98,6.3334]
[1750816197375,0.68497842,145.99,145.98,6.3334]
[1750816197572,6.22391471,145.99,145.98,6.3334]
[1750816200564,6.22391471,145.99,145.97,6.3334]
[1750816200780,5.53893629,145.98,145.97,6.3334]
[1750816202371,6.22396163,145.98,145.97,6.3334]
[1750816203295,0.68502534,145.98,145.97,6.3334]
[1750816203480,6.22396163,145.98,145.97,6.3334]
[1750816207474,6.22396163,145.98,145.96,6.3334]
[1750816207676,5.53893629,145.97,145.96,6.3334]
[1750816208185,5.53893629,145.97,145.95,6.3334]
[1750816208379,6.2240555,145.96,145.95,6.3334]
[1750816210179,6.22401022,145.97,145.95,6.3334]
[1750816210386,6.22401022,145.97,145.96,6.3334]
[1750816212593,6.22401022,145.97,145.95,6.3334]
[1750816212795,5.53893629,145.96,145.95,6.3334]
[1750816215434,6.2240555,145.96,145.95,6.3334]
[1750816216592,5.53893629,145.96,145.95,6.3334]
[1750816217589,6.2240555,145.96,145.95,6.3334]
[1750816220298,6.2240555,145.96,145.94,6.3334]
[1750816220495,6.2240555,145.96,145.95,6.3334]
[1750816221197,6.2240555,145.96,145.9,46.81265342]
[1750816221198,6.2240555,145.96,145.94,6.3334]
[1750816221378,0.6852131,145.94,145.93,6.3334]
[1750816221579,6.22414939,145.94,145.93,6.3334]
[1750816223501,6.22414939,145.94,145.92,6.3334]
[1750816223695,5.53893629,145.93,145.91,6.3334]
[1750816224005,0.6852131,145.94,145.92,6.3334]
[1750816225075,5.53893629,145.93,145.92,6.3334]
[1750816225499,6.22419634,145.93,145.92,6.3334]
[1750816235387,6.22419634,145.93,145.88,12.39384144]
[1750816235388,5.77374124,145.96,145.95,6.3334]
[1750816235586,0.68507227,145.97,145.96,6.3334]
[1750816238498,6.22400856,145.97,145.96,6.3334]
[1750816239804,26.0,145.95,145.94,6.3334]
[1750816240017,31.53893629,145.95,145.94,6.3334]
[1750816241322,32.22410244,145.95,145.94,6.3334]
[1750816250122,32.22410244,145.95,145.93,6.3334]
[1750816250422,5.53893629,145.94,145.93,6.3334]
[1750816250728,5.53893629,145.94,145.92,34.5934]
[1750816250932,5.53893629,145.93,145.92,34.5934]
[1750816252953,5.77378818,145.95,145.92,34.5934]
[1750816253152,6.22419634,145.93,145.92,34.5934]
[1750816254059,26.68526005,145.93,145.92,34.5934]
[1750816254233,32.22419634,145.93,145.92,34.5934]
[1750816254432,26.0,145.93,145.92,34.5934]
[1750816258226,0.68522349,145.94,145.93,6.3334]
[1750816258439,11.31274106,145.95,145.93,6.3334]
[1750816258649,0.68518274,145.95,145.94,6.3334]
[1750816258848,10.62755832,145.96,145.95,6.3334]
[1750816259071,5.53893629,145.96,145.95,6.3334]
[1750816259275,5.77374124,145.96,145.95,6.3334]
[1750816259868,0.68511921,145.96,145.95,6.3334]
[1750816260070,11.31264782,145.97,145.95,6.3334]
[1750816260232,0.6850895,145.97,145.96,6.3334]
[1750816260563,11.31264782,145.97,145.96,6.3334]
[1750816260926,5.77371153,145.97,145.96,6.3334]
[1750816261133,11.31264782,145.97,145.96,6.3334]
[1750816263261,5.77371153,145.97,145.96,6.3334]
[1750816263565,6.22402579,145.97,145.96,6.3334]
[1750816263861,5.77371153,145.97,145.96,6.3334]
[1750816265540,5.08862203,145.97,145.96,6.3334]
[1750816265964,10.62755832,145.97,145.96,6.3334]
[1750816266767,5.53893629,145.97,145.96,6.3334]
[1750816267166,36.62755832,145.98,145.97,6.3334]
[1750816267468,26.0,145.98,145.97,6.3334]
[1750816268940,31.53893629,145.98,145.97,6.3334]
[1750816271242,32.22396163,145.98,145.97,6.3334]
[1750816272769,31.53893629,145.98,145.97,6.3334]
[1750816272948,26.0,145.98,145.97,6.3334]
[1750816274170,5.53893629,146.0,145.99,6.3334]
[1750816274660,6.22386779,146.0,145.99,6.3334]
[1750816277860,5.08862203,146.02,146.0,6.3334]
[1750816278172,11.31241108,146.02,146.0,6.3334]
[1750816278543,11.31241108,146.02,146.01,6.3334]
[1750816279173,10.62755832,146.02,146.01,6.3334]
[1750816279357,6.22374967,146.03,146.02,6.3334]
[1750816279671,147.8484,146.07,145.99,6.8497825]
[1750816279672,5.77333305,146.05,146.04,6.3334]
[1750816279839,5.08862203,146.06,146.05,6.3334]
[1750816280039,7.18733629,146.07,146.05,6.3334]
[1750816280347,5.53893629,146.06,146.05,6.3334]
[1750816280541,2.33302241,146.07,146.05,6.3334]
[1750816280748,5.53893629,146.06,146.05,6.3334]
[1750816281175,0.68457163,146.08,146.07,6.3334]
[1750816281349,5.53893629,146.08,146.07,6.3334]
[1750816281548,5.53893629,146.09,146.08,6.3334]
[1750816281875,5.53893629,146.1,146.09,6.3334]
[1750816284790,6.22339898,146.1,146.09,6.3334]
[1750816285268,18.64964886,146.09,146.05,6.3334]
[1750816285576,5.53893629,146.06,146.05,6.3334]
[1750816287671,6.22358643,146.06,146.05,6.3334]
[1750816288573,0.68441585,146.11,146.1,6.3334]
[1750816288756,6.22335214,146.11,146.1,6.3334]
[1750816288957,32.22335214,146.11,146.1,6.3334]
[1750816289345,32.22335214,146.11,146.09,6.3334]
[1750816289551,26.68441585,146.11,146.1,6.3334]
[1750816289772,32.22335214,146.11,146.1,6.3334]
[1750816290463,32.22335214,146.11,146.09,6.3334]
[1750816290657,26.0,146.08,146.07,6.3334]
[1750816290973,31.53893629,146.08,146.07,6.3334]
[1750816293173,32.22349269,146.08,146.07,6.3334]
[1750816293375,31.53893629,146.08,146.07,6.3334]
[1750816293869,32.22349269,146.08,146.07,6.3334]
[1750816294184,26.0,146.08,146.07,6.3334]
[1750816294478,31.53893629,146.08,146.07,6.3334]
[1750816296578,26.0,146.08,146.07,6.3334]
[1750816296777,31.53893629,146.08,146.07,6.3334]
[1750816297677,26.0,146.08,146.07,6.3334]
[1750816297976,31.53893629,146.08,146.07,6.3334]
[1750816298369,26.0,146.08,146.07,6.3334]
[1750816299550,31.53893629,146.08,146.07,6.3334]
[1750816299977,32.22349269,146.08,146.07,6.3334]
[1750816300870,31.53893629,146.08,146.07,6.3334]
[1750816305779,32.22349269,146.08,146.07,6.3334]
[1750816307687,50.87314155,146.08,146.06,6.3334]
[1750816307872,26.6845564,146.08,146.07,6.3334]
[1750816308194,32.22349269,146.08,146.07,6.3334]
[1750816318586,6.22349269,146.08,146.05,6.3334]
[1750816318777,7.9348837,146.08,146.05,6.3334]
[1750816318978,2.39594741,146.08,146.06,6.3334]
[1750816319693,2.39594741,146.08,146.05,6.3334]
[1750816319992,7.4859094,146.08,146.05,6.3334]
[1750816320290,5.53893629,146.06,146.05,6.3334]
[1750816321574,6.22358643,146.06,146.05,6.3334]
[1750816322396,37.31354842,146.06,146.05,6.3334]
[1750816322596,32.22358643,146.06,146.05,6.3334]
[1750816322798,37.31354842,146.06,146.05,6.3334]
[1750816323097,32.22358643,146.06,146.05,6.3334]
[1750816323404,37.31354842,146.06,146.05,6.3334]
[1750816323577,32.22358643,146.06,146.05,6.3334]
[1750816323768,37.31354842,146.06,146.05,6.3334]
[1750816323985,32.22358643,146.06,146.05,6.3334]
[1750816324191,13.02517377,146.06,146.03,6.3334]
[1750816324390,26.0,146.03,146.02,6.3334]
[1750816324699,26.0,146.03,145.97,5.53893629]
[1750816324700,26.0,146.02,146.01,6.3334]
[1750816324903,31.53893629,146.02,146.01,6.3334]
[1750816325785,32.22377398,146.02,146.01,6.3334]
[1750816330594,26.0,146.02,146.01,6.3334]
[1750816331504,5.08996199,146.06,146.04,6.3334]
[1750816331726,5.08996199,146.08,146.07,6.3334]
[1750816332179,6.22345763,146.09,146.07,6.3334]
[1750816332595,0.68452134,146.09,146.08,6.3334]
[1750816333900,6.22345763,146.09,146.08,6.3334]
[1750816335606,37.31341962,146.09,146.08,6.3334]
[1750816335905,32.22345763,146.09,146.08,6.3334]
[1750816336090,37.31341962,146.09,146.08,6.3334]
[1750816336281,32.22345763,146.09,146.08,6.3334]
[1750816336600,37.31341962,146.09,146.07,6.3334]
[1750816336777,26.0,146.08,146.07,6.3334]
[1750816336974,31.53893629,146.08,146.07,6.3334]
[1750816338004,0.68460327,146.07,146.06,6.3334]
[1750816338204,6.22353956,146.07,146.06,6.3334]
[1750816351313,11.34074907,146.07,146.06,6.3334]
[1750816354815,6.22353956,146.07,146.06,6.3334]
[1750816355116,11.34220193,146.07,146.06,6.3334]
[1750816359636,11.34220193,146.07,146.05,6.3334]
[1750816359862,30.83404752,146.06,146.01,6.3334]
[1750816360145,5.53893629,146.02,146.0,6.3334]
[1750816360431,5.53893629,146.01,146.0,6.3334]
[1750816361423,6.22382088,146.01,146.0,6.3334]
[1750816366633,6.83040974,146.05,146.02,6.3334]
[1750816366834,6.83040974,146.05,145.94,40.3505]
[1750816366835,6.22368019,146.04,146.03,6.3334]
[1750816376672,6.22368019,146.04,145.98,5.53893629]
[1750816376673,26.0,146.02,146.01,6.3334]
[1750816376960,26.0,146.01,146.0,6.3334]
[1750816377670,31.53893629,146.01,145.99,6.3334]
[1750816377876,31.53893629,146.0,145.99,6.3334]
[1750816378864,32.22386779,146.0,145.99,6.3334]
[1750816382164,26.6849315,146.0,145.99,6.3334]
[1750816382364,32.22386779,146.0,145.99,6.3334]
[1750816385274,26.0,146.0,145.99,6.3334]
[1750816385662,0.68488737,146.01,146.0,6.3334]
[1750816387386,2.39670389,146.04,146.0,6.3334]
[1750816387677,5.53893629,146.03,146.02,6.3334]
[1750816388579,6.22372708,146.03,146.02,6.3334]
[1750816396562,11.33215884,146.03,146.02,6.3334]
[1750816396762,6.22372708,146.03,146.02,6.3334]
[1750816397270,11.33215884,146.03,146.02,6.3334]
[1750816397475,6.22372708,146.03,146.02,6.3334]
[1750816397873,11.33215884,146.03,146.02,6.3334]
[1750816398097,6.22372708,146.03,146.02,6.3334]
[1750816398581,11.33215884,146.03,146.02,6.3334]
[1750816398780,6.22372708,146.03,146.02,6.3334]
[1750816398984,11.33215884,146.03,146.02,6.3334]
[1750816399182,6.22372708,146.03,146.02,6.3334]
[1750816399381,11.33215884,146.03,146.02,6.3334]
[1750816401211,11.33215884,146.03,146.01,6.3334]
[1750816401493,36.64736805,146.02,146.01,6.3334]
[1750816401999,37.33220574,146.02,146.01,6.3334]
[1750816402583,26.0,146.02,146.01,6.3334]
[1750816402782,5.10843176,146.03,146.01,11.87233629]
[1750816403094,5.10843176,146.04,146.03,6.3334]
[1750816405100,5.10843176,146.05,146.04,6.3334]
[1750816405496,31.7930902,146.06,146.04,6.3334]
[1750816405702,37.33202649,146.06,146.05,6.3334]
[1750816405888,32.22359473,146.06,146.05,6.3334]
[1750816406089,37.33202649,146.06,146.05,6.3334]
[1750816406278,32.22359473,146.06,146.05,6.3334]
[1750816406477,37.33202649,146.06,146.05,6.3334]
[1750816406679,32.22359473,146.06,146.05,6.3334]
[1750816406886,37.33202649,146.06,146.05,6.3334]
[1750816407085,32.22359473,146.06,146.05,6.3334]
[1750816407286,37.33202649,146.06,146.05,6.3334]
[1750816407491,32.22359473,146.06,146.05,6.3334]
[1750816408181,5.10843176,146.06,146.05,6.3334]
[1750816408385,5.10843176,146.08,146.07,6.3334]
[1750816408585,0.68452757,146.09,146.08,6.3334]
[1750816408777,5.10843176,146.09,146.08,6.3334]
[1750816409388,37.33185041,146.1,146.08,6.3334]
[1750816410093,37.33185041,146.1,146.09,6.3334]
[1750816411004,32.22341865,146.1,146.09,6.3334]
[1750816418117,6.22341865,146.1,146.08,6.3334]
[1750816418331,5.53893629,146.09,146.08,6.3334]
[1750816418921,24.18858515,146.09,146.07,6.3334]
[1750816419114,24.18858515,146.08,146.06,6.3334]
[1750816419435,5.53893629,146.07,146.05,6.3334]
[1750816419621,6.22358643,146.06,146.05,6.3334]
[1750816420521,0.68460327,146.07,146.05,6.3334]
[1750816420700,5.53893629,146.06,146.05,6.3334]
[1750816421020,0.68460327,146.07,146.06,6.3334]
[1750816421228,6.22353956,146.07,146.06,6.3334]
[1750816424629,6.22353956,146.07,146.05,6.3334]
[1750816424835,31.53893629,146.06,146.05,6.3334]
[1750816426830,32.22358643,146.06,146.04,6.3334]
[1750816427023,26.68465014,146.06,146.05,6.3334]
[1750816427226,32.22358643,146.06,146.05,6.3334]
[1750816429342,32.22358643,146.06,146.04,6.3334]
[1750816429545,5.53893629,146.05,146.02,6.3334]
[1750816429753,19.98137849,146.05,146.01,6.3334]
[1750816429957,5.53893629,146.02,146.01,6.3334]
[1750816430134,5.53893629,146.02,146.0,6.3334]
[1750816430646,5.53893629,146.01,146.0,6.3334]
[1750816430843,6.22382088,146.01,146.0,6.3334]
[1750816431446,6.22382088,146.01,145.95,11.78873629]
[1750816431447,6.22382088,146.01,145.99,6.3334]
[1750816431738,5.53893629,146.0,145.99,6.3334]
[1750816433155,6.22386779,146.0,145.99,6.3334]
[1750816435649,0.6849315,146.0,145.99,6.3334]
[1750816435820,6.22386779,146.0,145.99,6.3334]
[1750816436022,0.6849315,146.0,145.99,6.3334]
[1750816436254,6.22386779,146.0,145.99,6.3334]
[1750816442237,0.68483769,146.02,146.01,6.3334]
[1750816442440,32.22377398,146.02,146.01,6.3334]
[1750816446279,32.22377398,146.02,146.0,6.3334]
[1750816446480,26.68483769,146.02,146.01,6.3334]
[1750816446682,32.22377398,146.02,146.01,6.3334]
[1750816450998,31.53893629,146.02,146.01,6.3334]
[1750816452116,32.22377398,146.02,146.01,6.3334]
[1750816455918,26.0,146.02,146.01,6.3334]
[1750816457119,26.68483769,146.02,146.01,6.3334]
[1750816458132,26.0,146.02,146.01,6.3334]
[1750816458500,11.1822617,146.08,146.06,6.3334]
[1750816458805,5.53893629,146.07,146.06,6.3334]
[1750816459021,5.53893629,146.07,145.99,1.5778]
[1750816459022,7.9350649,146.07,146.04,6.3334]
[1750816459225,7.9350649,146.07,145.99,1.5778]
[1750816459226,5.53893629,146.05,146.03,6.3334]
[1750816459432,31.53893629,146.04,146.03,6.3334]
[1750816459922,32.22368019,146.04,146.03,6.3334]
[1750816464337,0.6847439,146.04,146.03,6.3334]
[1750816464532,5.93522605,146.04,146.03,6.3334]
[1750816465407,0.6847439,146.04,146.03,6.3334]
[1750816466738,31.52628728,146.04,146.03,6.3334]
[1750816468340,32.21103118,146.04,146.03,6.3334]
[1750816478334,37.31329288,146.04,146.03,6.3334]
[1750816478535,32.21103118,146.04,146.03,6.3334]
[1750816478736,37.31329288,146.04,146.03,6.3334]
[1750816478934,32.21103118,146.04,146.03,6.3334]
[1750816479137,37.31329288,146.04,146.03,6.3334]
[1750816479338,32.21103118,146.04,146.03,6.3334]
[1750816479539,37.31329288,146.04,146.03,6.3334]
[1750816479740,32.21103118,146.04,146.03,6.3334]
[1750816479941,37.31329288,146.04,146.03,6.3334]
[1750816480647,37.31329288,146.04,146.01,6.3334]
[1750816480824,5.52628728,146.02,146.0,6.3334]
[1750816481029,10.62854898,146.01,145.99,6.3334]
[1750816481242,5.52628728,146.0,145.99,6.3334]
[1750816482033,10.62854898,146.0,145.99,6.3334]
[1750816482242,6.21121878,146.0,145.99,6.3334]
[1750816482426,6.21121878,146.0,145.98,6.3334]
[1750816482744,10.62854898,145.99,145.98,6.3334]
[1750816483125,5.52628728,145.99,145.98,6.3334]
[1750816483449,10.62854898,145.99,145.98,6.3334]
[1750816484229,31.52628728,145.99,145.98,6.3334]
[1750816484438,32.2112657,145.99,145.98,6.3334]
[1750816484739,37.3135274,145.99,145.97,6.3334]
[1750816484941,37.3135274,145.99,145.98,6.3334]
[1750816487346,32.2112657,145.99,145.98,6.3334]
[1750816488392,30.22538192,145.99,145.98,6.3334]
[1750816491894,30.22538192,145.99,145.97,6.3334]
[1750816492204,3.5404035,145.98,145.96,6.3334]
[1750816492372,3.5404035,145.97,145.96,6.3334]
[1750816493375,3.5404035,145.97,145.95,6.3334]
[1750816493575,7.49968617,145.99,145.96,6.3334]
[1750816494190,2.39742447,145.99,145.96,6.3334]
[1750816494802,3.5404035,145.97,145.96,6.3334]
[1750816495598,30.22547577,145.97,145.96,6.3334]
[1750816496793,29.5404035,145.97,145.96,6.3334]
[1750816497002,26.0,145.97,145.96,6.3334]
[1750816497891,4.2253996,145.99,145.98,6.3334]
[1750816498678,3.5404035,146.02,146.01,6.3334]
[1750816498978,4.22519429,146.03,146.01,6.3334]
[1750816499205,0.68479079,146.03,146.02,6.3334]
[1750816499585,0.68479079,146.03,146.01,6.3334]
[1750816499803,0.68479079,146.03,146.02,6.3334]
[1750816499998,26.0,146.03,146.02,6.3334]
[1750816500317,31.52853966,146.03,146.02,6.3334]
[1750816501508,32.21333045,146.03,146.02,6.3334]
[1750816504911,6.21327052,146.05,146.04,6.3334]
[1750816505418,11.32288121,146.05,146.04,6.3334]
[1750816505803,6.21327052,146.05,146.04,6.3334]
[1750816508110,11.32244857,146.05,146.04,6.3334]
[1750816518144,37.32244857,146.05,146.04,6.3334]
[1750816523855,36.63771771,146.05,146.04,6.3334]
[1750816524238,34.64608286,146.05,146.04,6.3334]
[1750816524738,26.0,146.05,146.04,6.3334]
[1750816524937,11.76705518,146.09,146.07,6.3334]
[1750816525134,8.43994341,146.1,146.07,6.3334]
[1750816525135,3.53690481,146.08,146.07,6.3334]
[1750816525338,4.22146121,146.08,146.07,6.3334]
[1750816528253,31.52396659,146.08,146.07,6.3334]
[1750816530564,32.20852299,146.08,146.07,6.3334]
[1750816530763,32.20852299,146.08,146.06,6.3334]
[1750816530951,5.52396659,146.07,146.06,6.3334]
[1750816531153,5.52396659,146.07,146.05,6.3334]
[1750816531473,5.52396659,146.06,146.05,6.3334]
[1750816531664,5.52396659,146.06,146.04,6.3334]
[1750816531878,5.52396659,146.05,146.04,6.3334]
[1750816532647,6.20866361,146.05,146.04,6.3334]
[1750816539568,6.20863175,146.06,146.04,6.3334]
[1750816540173,0.68466516,146.06,146.04,6.3334]
[1750816540379,6.20863175,146.06,146.04,6.3334]
[1750816541384,6.20863175,146.06,146.05,6.3334]
[1750816542262,11.31729416,146.06,146.05,6.3334]
[1750816542584,6.20863175,146.06,146.05,6.3334]
[1750816542760,11.31729416,146.06,146.05,6.3334]
[1750816542957,6.20863175,146.06,146.05,6.3334]
[1750816543182,37.31729416,146.06,146.05,6.3334]
[1750816543369,32.20863175,146.06,146.05,6.3334]
[1750816543682,37.31729416,146.06,146.05,6.3334]
[1750816543858,32.20863175,146.06,146.05,6.3334]
[1750816544056,37.31729416,146.06,146.05,6.3334]
[1750816544256,32.20863175,146.06,146.05,6.3334]
[1750816544459,31.79332757,146.06,146.05,6.3334]
[1750816544660,5.79332757,146.06,146.05,6.3334]
[1750816544963,0.68466516,146.06,146.05,6.3334]
[1750816545583,6.20863175,146.06,146.05,6.3334]
[1750816546384,37.31729416,146.06,146.05,6.3334]
[1750816552688,36.632629,146.06,146.05,6.3334]
[1750816552872,37.31727914,146.06,146.05,6.3334]
[1750816553689,26.0,146.06,146.05,6.3334]
[1750816553892,31.10866241,146.06,146.05,6.3334]
[1750816560775,31.79331255,146.06,146.05,6.3334]
[1750816560996,37.31727914,146.06,146.05,6.3334]